[Event "Late-Titled-Tuesday-Blitz-April-02-2024"]
[Site "Chess.com"]
[Date "2024.04.02"]
[Round "9"]
[White "Slovineanu"]
[Black "ProfessorChess101"]
[Result "1-0"]
[WhiteElo "2483"]
[BlackElo "2741"]
[TimeControl "180+1"]
[EndTime "15:43:25 PDT"]
[Termination "Slovineanu won by resignation"]

1. d4 {[%clk 0:03:00.9]} 1... Nf6 {[%clk 0:02:52.7]} 2. Nf3 {[%clk 0:03:00.7]}
2... e6 {[%clk 0:02:52.2]} 3. c4 {[%clk 0:03:00.9]} 3... a6 {[%clk 0:02:52.2]}
4. e3 {[%clk 0:03:00.2]} 4... d5 {[%clk 0:02:51.8]} 5. b3 {[%clk 0:03:00.5]}
5... Bb4+ {[%clk 0:02:50]} 6. Nbd2 {[%clk 0:03:00.2]} 6... O-O {[%clk
0:02:48.8]} 7. Bd3 {[%clk 0:02:59.6]} 7... c5 {[%clk 0:02:48.9]} 8. O-O {[%clk
0:02:57]} 8... Nc6 {[%clk 0:02:48.4]} 9. Bb2 {[%clk 0:02:56.9]} 9... cxd4 {[%clk
0:02:47.3]} 10. exd4 {[%clk 0:02:56]} 10... dxc4 {[%clk 0:02:42.8]} 11. bxc4
{[%clk 0:02:55.8]} 11... Qd6 {[%clk 0:02:33.6]} 12. a3 {[%clk 0:02:48.7]} 12...
Ba5 {[%clk 0:02:32.8]} 13. Qe2 {[%clk 0:02:43.8]} 13... Bc7 {[%clk 0:02:25.1]}
14. Rad1 {[%clk 0:02:39.4]} 14... Bd7 {[%clk 0:02:13.7]} 15. Ne4 {[%clk
0:02:36]} 15... Nxe4 {[%clk 0:01:57.9]} 16. Qxe4 {[%clk 0:02:35.9]} 16... f5
{[%clk 0:01:58.4]} 17. Qe2 {[%clk 0:02:36]} 17... Rae8 {[%clk 0:01:53]} 18. Rfe1
{[%clk 0:02:30.5]} 18... Qf4 {[%clk 0:01:48.1]} 19. Bc1 {[%clk 0:01:59.3]} 19...
Qd6 {[%clk 0:01:15]} 20. c5 {[%clk 0:01:50.1]} 20... Qe7 {[%clk 0:01:07.9]} 21.
Bc4 {[%clk 0:01:50.1]} 21... Kh8 {[%clk 0:01:05.2]} 22. Ng5 {[%clk 0:01:38.5]}
22... Nd8 {[%clk 0:00:46.8]} 23. Qh5 {[%clk 0:01:23.1]} 23... h6 {[%clk
0:00:43]} 24. Nh3 {[%clk 0:01:23.2]} 24... Qf6 {[%clk 0:00:35.6]} 25. Bf4 {[%clk
0:01:12.1]} 25... Ba5 {[%clk 0:00:14.1]} 26. Be5 {[%clk 0:01:12.1]} 26... Qf7
{[%clk 0:00:10.6]} 27. Qxh6+ {[%clk 0:01:05.7]} 27... Kg8 {[%clk 0:00:11]} 28.
Qh4 {[%clk 0:01:05.7]} 28... Bxe1 {[%clk 0:00:06.9]} 29. Rxe1 {[%clk 0:01:05.5]}
29... Qg6 {[%clk 0:00:06.5]} 30. Nf4 {[%clk 0:00:53.8]} 30... Qg4 {[%clk
0:00:04.8]} 31. Qxg4 {[%clk 0:00:47.4]} 31... fxg4 {[%clk 0:00:05.7]} 32. Be2
{[%clk 0:00:45.5]} 32... Nc6 {[%clk 0:00:05]} 33. Bd6 {[%clk 0:00:44.3]} 33...
Rf5 {[%clk 0:00:03.6]} 34. Bxg4 {[%clk 0:00:43]} 34... Rg5 {[%clk 0:00:03.9]}
35. Bf3 {[%clk 0:00:23.4]} 35... Nxd4 {[%clk 0:00:04.1]} 36. Bxb7 {[%clk
0:00:23.2]} 36... e5 {[%clk 0:00:04.3]} 37. Nd3 {[%clk 0:00:19.2]} 37... e4
{[%clk 0:00:04.3]} 38. Rxe4 {[%clk 0:00:17.5]} 38... Rxe4 {[%clk 0:00:03.2]} 39.
Bxe4 {[%clk 0:00:18.1]} 39... Bf5 {[%clk 0:00:02.8]} 40. f4 {[%clk 0:00:15.5]}
40... Rh5 {[%clk 0:00:02.6]} 41. Bxf5 {[%clk 0:00:14.7]} 41... Rxf5 {[%clk
0:00:03.5]} 42. Kf2 {[%clk 0:00:14.9]} 42... Ne6 {[%clk 0:00:03.1]} 43. g4
{[%clk 0:00:13.7]} 43... Rd5 {[%clk 0:00:03.5]} 44. Ke3 {[%clk 0:00:14.1]} 44...
Kf7 {[%clk 0:00:03.5]} 45. f5 {[%clk 0:00:14.3]} 45... Nd8 {[%clk 0:00:02.6]}
46. Ke4 {[%clk 0:00:14.6]} 46... Rxd3 {[%clk 0:00:02.5]} 47. Kxd3 {[%clk
0:00:15.1]} 47... Nc6 {[%clk 0:00:03.2]} 48. Ke4 {[%clk 0:00:15.1]} 48... Kf6
{[%clk 0:00:03.4]} 49. h4 {[%clk 0:00:15.5]} 49... Na5 {[%clk 0:00:03.3]} 50.
g5+ {[%clk 0:00:15.7]} 50... Kf7 {[%clk 0:00:03.6]} 51. Kd5 {[%clk 0:00:15.5]}
51... Ke8 {[%clk 0:00:04.1]} 52. h5 {[%clk 0:00:15.5]} 52... Nb3 {[%clk
0:00:03.5]} 53. Be5 {[%clk 0:00:15]} 53... Kf7 {[%clk 0:00:03.5]} 54. g6+ {[%clk
0:00:15]} 54... Kg8 {[%clk 0:00:03.4]} 55. f6 {[%clk 0:00:15.3]} 55... gxf6
{[%clk 0:00:03.3]} 56. Bxf6 {[%clk 0:00:15.9]} 56... Na5 {[%clk 0:00:03.9]} 57.
h6 {[%clk 0:00:15.2]} 1-0

[Event "Late-Titled-Tuesday-Blitz-April-02-2024"]
[Site "Chess.com"]
[Date "2024.04.02"]
[Round "9"]
[White "DeArron_Fox"]
[Black "smotherhubbard"]
[Result "1-0"]
[WhiteElo "2538"]
[BlackElo "2383"]
[TimeControl "180+1"]
[EndTime "15:43:31 PDT"]
[Termination "DeArron_Fox won by checkmate"]

1. d4 {[%clk 0:03:00.9]} 1... Nf6 {[%clk 0:02:58.3]} 2. c4 {[%clk 0:03:01]} 2...
e6 {[%clk 0:02:58.4]} 3. Nf3 {[%clk 0:03:00.7]} 3... b6 {[%clk 0:02:58]} 4. g3
{[%clk 0:03:00.3]} 4... Ba6 {[%clk 0:02:57.6]} 5. Nbd2 {[%clk 0:03:00.7]} 5...
c5 {[%clk 0:02:55.8]} 6. Bg2 {[%clk 0:02:55.6]} 6... Nc6 {[%clk 0:02:55.4]} 7.
dxc5 {[%clk 0:02:25.5]} 7... Bxc5 {[%clk 0:02:51.9]} 8. O-O {[%clk 0:02:25.8]}
8... O-O {[%clk 0:02:50.9]} 9. a3 {[%clk 0:02:26.1]} 9... Be7 {[%clk 0:02:37]}
10. b4 {[%clk 0:02:22]} 10... Bb7 {[%clk 0:02:37.1]} 11. Bb2 {[%clk 0:02:21.6]}
11... d5 {[%clk 0:02:35.1]} 12. Rc1 {[%clk 0:02:13.3]} 12... dxc4 {[%clk
0:02:17]} 13. Nxc4 {[%clk 0:02:01.1]} 13... Qxd1 {[%clk 0:02:16]} 14. Rfxd1
{[%clk 0:02:02]} 14... Rfd8 {[%clk 0:02:15.7]} 15. Nfe5 {[%clk 0:01:48.8]} 15...
Rxd1+ {[%clk 0:01:21.6]} 16. Rxd1 {[%clk 0:01:47.5]} 16... Rc8 {[%clk
0:01:22.2]} 17. Nd6 {[%clk 0:01:30.5]} 17... Bxd6 {[%clk 0:01:04.4]} 18. Rxd6
{[%clk 0:01:31.4]} 18... Nd8 {[%clk 0:00:35.5]} 19. Rxd8+ {[%clk 0:01:16.4]}
19... Rxd8 {[%clk 0:00:36.4]} 20. Bxb7 {[%clk 0:01:16.5]} 20... Rd2 {[%clk
0:00:37]} 21. Nd3 {[%clk 0:00:22.1]} 21... Rxe2 {[%clk 0:00:33.6]} 22. Bxf6
{[%clk 0:00:22]} 22... gxf6 {[%clk 0:00:32.3]} 23. b5 {[%clk 0:00:22.7]} 23...
Ra2 {[%clk 0:00:26]} 24. Nb4 {[%clk 0:00:22.6]} 24... Rxa3 {[%clk 0:00:24.9]}
25. Nc6 {[%clk 0:00:16.1]} 25... Rc3 {[%clk 0:00:14.1]} 26. Ba6 {[%clk
0:00:12.1]} 26... Kf8 {[%clk 0:00:12.7]} 27. Nxa7 {[%clk 0:00:11.9]} 27... Ke7
{[%clk 0:00:13]} 28. Nc8+ {[%clk 0:00:11.6]} 28... Kd7 {[%clk 0:00:10.1]} 29.
Nxb6+ {[%clk 0:00:08.3]} 29... Kc7 {[%clk 0:00:10.4]} 30. Nc8 {[%clk 0:00:02.9]}
30... Rc1+ {[%clk 0:00:06.3]} 31. Kg2 {[%clk 0:00:03.3]} 31... Kd7 {[%clk
0:00:05.9]} 32. Nb6+ {[%clk 0:00:03.1]} 32... Kc7 {[%clk 0:00:05.3]} 33. Nc4
{[%clk 0:00:03.5]} 33... e5 {[%clk 0:00:03.1]} 34. Ne3 {[%clk 0:00:02.8]} 34...
Kb6 {[%clk 0:00:02.7]} 35. Nd5+ {[%clk 0:00:02.8]} 35... Kc5 {[%clk 0:00:02.9]}
36. Nxf6 {[%clk 0:00:03.7]} 36... Kd4 {[%clk 0:00:02.4]} 37. Nxh7 {[%clk
0:00:03.6]} 37... e4 {[%clk 0:00:02.3]} 38. Ng5 {[%clk 0:00:03.1]} 38... Rc2
{[%clk 0:00:02.5]} 39. Kf1 {[%clk 0:00:02.4]} 39... Rc1+ {[%clk 0:00:02.7]} 40.
Kg2 {[%clk 0:00:02.5]} 40... Rc2 {[%clk 0:00:03]} 41. b6 {[%clk 0:00:02.6]}
41... e3 {[%clk 0:00:03]} 42. Nh3 {[%clk 0:00:02.4]} 42... exf2 {[%clk
0:00:02.5]} 43. Nxf2 {[%clk 0:00:02.4]} 43... Ke3 {[%clk 0:00:03]} 44. b7 {[%clk
0:00:02.1]} 44... Rxf2+ {[%clk 0:00:03.9]} 45. Kh3 {[%clk 0:00:02.4]} 45... Rb2
{[%clk 0:00:04.5]} 46. Kg4 {[%clk 0:00:02.8]} 46... Ke4 {[%clk 0:00:04.4]} 47.
h4 {[%clk 0:00:03]} 47... f5+ {[%clk 0:00:04.2]} 48. Kg5 {[%clk 0:00:03]} 48...
Rb6 {[%clk 0:00:04.4]} 49. h5 {[%clk 0:00:02.9]} 49... Rb3 {[%clk 0:00:04.5]}
50. h6 {[%clk 0:00:02.2]} 50... Rxg3+ {[%clk 0:00:05]} 51. Kf6 {[%clk
0:00:02.7]} 51... Rh3 {[%clk 0:00:04.8]} 52. b8=Q {[%clk 0:00:02.2]} 52... Rxh6+
{[%clk 0:00:05.3]} 53. Kg5 {[%clk 0:00:03]} 53... Rxa6 {[%clk 0:00:05.8]} 54.
Qb7+ {[%clk 0:00:03.4]} 54... Ke3 {[%clk 0:00:06.1]} 55. Qxa6 {[%clk 0:00:03.9]}
55... f4 {[%clk 0:00:06.7]} 56. Qa3+ {[%clk 0:00:04]} 56... Ke4 {[%clk
0:00:06.9]} 57. Qb4+ {[%clk 0:00:04.2]} 57... Kf3 {[%clk 0:00:07.3]} 58. Qxf4+
{[%clk 0:00:05.1]} 58... Ke2 {[%clk 0:00:07.3]} 59. Qc4+ {[%clk 0:00:05.2]}
59... Ke3 {[%clk 0:00:07.1]} 60. Kg4 {[%clk 0:00:05.2]} 60... Kd2 {[%clk
0:00:07.8]} 61. Kf3 {[%clk 0:00:05.2]} 61... Ke1 {[%clk 0:00:07.8]} 62. Qe2#
{[%clk 0:00:05.3]} 1-0

[Event "Late-Titled-Tuesday-Blitz-April-02-2024"]
[Site "Chess.com"]
[Date "2024.04.02"]
[Round "9"]
[White "Felix-Rose"]
[Black "ricaurtelopezj1955"]
[Result "1-0"]
[WhiteElo "2311"]
[BlackElo "2161"]
[TimeControl "180+1"]
[EndTime "15:43:33 PDT"]
[Termination "Felix-Rose won on time"]

1. e4 {[%clk 0:02:59.7]} 1... e5 {[%clk 0:02:58.7]} 2. Nf3 {[%clk 0:03:00]} 2...
Nc6 {[%clk 0:02:56.7]} 3. Bb5 {[%clk 0:03:00]} 3... a6 {[%clk 0:02:52.7]} 4. Ba4
{[%clk 0:03:00.2]} 4... Nf6 {[%clk 0:02:51]} 5. O-O {[%clk 0:03:00.3]} 5... b5
{[%clk 0:02:48]} 6. Bb3 {[%clk 0:03:00.4]} 6... Be7 {[%clk 0:02:46.4]} 7. h3
{[%clk 0:02:56.4]} 7... O-O {[%clk 0:02:43.9]} 8. Re1 {[%clk 0:02:55.8]} 8... d6
{[%clk 0:02:27.7]} 9. c3 {[%clk 0:02:54.9]} 9... Na5 {[%clk 0:02:23.3]} 10. Bc2
{[%clk 0:02:54.3]} 10... c5 {[%clk 0:02:23.2]} 11. d4 {[%clk 0:02:54.4]} 11...
cxd4 {[%clk 0:02:21.5]} 12. cxd4 {[%clk 0:02:54.6]} 12... Qc7 {[%clk 0:02:21.1]}
13. Nbd2 {[%clk 0:02:32.6]} 13... Bd7 {[%clk 0:02:17.2]} 14. Nf1 {[%clk
0:02:23.4]} 14... Rac8 {[%clk 0:02:14.6]} 15. Re2 {[%clk 0:02:09.5]} 15... Rfe8
{[%clk 0:02:02.7]} 16. d5 {[%clk 0:02:02.8]} 16... b4 {[%clk 0:01:50.6]} 17. Bd3
{[%clk 0:01:51.6]} 17... Bb5 {[%clk 0:01:47.2]} 18. Bxb5 {[%clk 0:01:33.4]}
18... axb5 {[%clk 0:01:47.6]} 19. b3 {[%clk 0:01:28.4]} 19... Nb7 {[%clk
0:01:26.5]} 20. Ng3 {[%clk 0:01:06.4]} 20... Nc5 {[%clk 0:01:15.8]} 21. Bd2
{[%clk 0:00:55.6]} 21... Nd3 {[%clk 0:01:07.2]} 22. Bg5 {[%clk 0:00:48.4]} 22...
Qc3 {[%clk 0:00:53.5]} 23. Re3 {[%clk 0:00:20.2]} 23... Qxa1 {[%clk 0:00:43.6]}
24. Qxa1 {[%clk 0:00:17.6]} 24... Rc1+ {[%clk 0:00:44]} 25. Qxc1 {[%clk
0:00:12.9]} 25... Nxc1 {[%clk 0:00:44.4]} 26. Re1 {[%clk 0:00:10.8]} 26... Nxa2
{[%clk 0:00:43.3]} 27. Ra1 {[%clk 0:00:09.8]} 27... Nc3 {[%clk 0:00:42.6]} 28.
Bxf6 {[%clk 0:00:10.6]} 28... Bxf6 {[%clk 0:00:40.7]} 29. Ra6 {[%clk 0:00:10.4]}
29... Be7 {[%clk 0:00:38.1]} 30. Kf1 {[%clk 0:00:07.9]} 30... Rc8 {[%clk
0:00:35.8]} 31. Nf5 {[%clk 0:00:07.1]} 31... Bf8 {[%clk 0:00:34.6]} 32. Nd2
{[%clk 0:00:05.7]} 32... g6 {[%clk 0:00:28.8]} 33. Nxd6 {[%clk 0:00:06.4]} 33...
Bxd6 {[%clk 0:00:27.7]} 34. Rxd6 {[%clk 0:00:07.3]} 34... Na2 {[%clk 0:00:20]}
35. Rc6 {[%clk 0:00:07.1]} 35... Ra8 {[%clk 0:00:18.7]} 36. Rb6 {[%clk
0:00:07.4]} 36... Rc8 {[%clk 0:00:17.5]} 37. Rxb5 {[%clk 0:00:05.7]} 37... Rc2
{[%clk 0:00:16.7]} 38. Nf3 {[%clk 0:00:05.2]} 38... Nc3 {[%clk 0:00:13.3]} 39.
Rb8+ {[%clk 0:00:05.2]} 39... Kg7 {[%clk 0:00:12.2]} 40. g4 {[%clk 0:00:06]}
40... Nxe4 {[%clk 0:00:10.9]} 41. Nxe5 {[%clk 0:00:06.2]} 41... Rxf2+ {[%clk
0:00:10.1]} 42. Ke1 {[%clk 0:00:07]} 42... Rb2 {[%clk 0:00:09.1]} 43. Rxb4
{[%clk 0:00:07.3]} 43... Ng5 {[%clk 0:00:07.3]} 44. h4 {[%clk 0:00:07.3]} 44...
Kf6 {[%clk 0:00:05.4]} 45. Nd7+ {[%clk 0:00:06.4]} 45... Ke7 {[%clk 0:00:04.6]}
46. hxg5 {[%clk 0:00:06.3]} 46... Kxd7 {[%clk 0:00:04.1]} 47. Rb7+ {[%clk
0:00:07.2]} 47... Kd6 {[%clk 0:00:03.9]} 48. Rxf7 {[%clk 0:00:07.5]} 48... Kxd5
{[%clk 0:00:03.1]} 49. Rxh7 {[%clk 0:00:07.9]} 49... Ke5 {[%clk 0:00:02.2]} 50.
Rb7 {[%clk 0:00:07.9]} 50... Kf4 {[%clk 0:00:01.2]} 51. Kd1 {[%clk 0:00:08.5]}
1-0

[Event "Late-Titled-Tuesday-Blitz-April-02-2024"]
[Site "Chess.com"]
[Date "2024.04.02"]
[Round "9"]
[White "ninguno46"]
[Black "Revan_2002"]
[Result "0-1"]
[WhiteElo "2590"]
[BlackElo "2742"]
[TimeControl "180+1"]
[EndTime "15:43:43 PDT"]
[Termination "Revan_2002 won by resignation"]

1. e4 {[%clk 0:02:59.6]} 1... c6 {[%clk 0:02:56.6]} 2. d4 {[%clk 0:02:58.7]}
2... d5 {[%clk 0:02:56.3]} 3. exd5 {[%clk 0:02:58.9]} 3... cxd5 {[%clk
0:02:56.2]} 4. Bd3 {[%clk 0:02:59.5]} 4... Nc6 {[%clk 0:02:56.2]} 5. c3 {[%clk
0:02:59.8]} 5... Nf6 {[%clk 0:02:56.3]} 6. Bf4 {[%clk 0:02:59.2]} 6... g6 {[%clk
0:02:56.7]} 7. Nf3 {[%clk 0:02:57]} 7... Bg7 {[%clk 0:02:56.9]} 8. Nbd2 {[%clk
0:02:56.3]} 8... O-O {[%clk 0:02:57.2]} 9. O-O {[%clk 0:02:55.7]} 9... Bf5
{[%clk 0:02:56.6]} 10. Bxf5 {[%clk 0:02:55.2]} 10... gxf5 {[%clk 0:02:57.5]} 11.
Qe2 {[%clk 0:02:55]} 11... e6 {[%clk 0:02:56.7]} 12. h3 {[%clk 0:02:55.2]} 12...
Ne4 {[%clk 0:02:55.5]} 13. Kh2 {[%clk 0:02:54.9]} 13... Kh8 {[%clk 0:02:54.9]}
14. Rg1 {[%clk 0:02:54.4]} 14... Bf6 {[%clk 0:02:54]} 15. g4 {[%clk 0:02:54.1]}
15... Ne7 {[%clk 0:02:08.1]} 16. gxf5 {[%clk 0:02:26.3]} 16... exf5 {[%clk
0:02:09]} 17. Nxe4 {[%clk 0:01:53.2]} 17... fxe4 {[%clk 0:01:53.8]} 18. Be5
{[%clk 0:01:51.3]} 18... Ng6 {[%clk 0:01:51]} 19. Bxf6+ {[%clk 0:01:17]} 19...
Qxf6 {[%clk 0:01:51.9]} 20. Ng5 {[%clk 0:01:16.6]} 20... Nf4 {[%clk 0:01:44.3]}
21. Qg4 {[%clk 0:01:03.7]} 21... Rg8 {[%clk 0:01:44.1]} 22. Raf1 {[%clk
0:00:50.6]} 22... Rg7 {[%clk 0:01:38.3]} 23. Qh4 {[%clk 0:00:35.9]} 23... Rag8
{[%clk 0:01:36.4]} 24. Nf3 {[%clk 0:00:26.4]} 24... Qxh4 {[%clk 0:00:53.4]} 25.
Nxh4 {[%clk 0:00:25.6]} 25... Rxg1 {[%clk 0:00:54.1]} 26. Rxg1 {[%clk
0:00:25.3]} 26... Rxg1 {[%clk 0:00:55]} 27. Kxg1 {[%clk 0:00:25.4]} 27... Nxh3+
{[%clk 0:00:55.9]} 28. Kf1 {[%clk 0:00:24.8]} 28... Kg7 {[%clk 0:00:55.1]} 29.
Nf5+ {[%clk 0:00:18.5]} 29... Kf6 {[%clk 0:00:46.8]} 30. Nd6 {[%clk 0:00:18.5]}
30... Nf4 {[%clk 0:00:21.8]} 31. Nxb7 {[%clk 0:00:16.7]} 31... h5 {[%clk
0:00:22.3]} 32. Na5 {[%clk 0:00:13.6]} 32... h4 {[%clk 0:00:20.8]} 33. Nc6
{[%clk 0:00:13.5]} 33... a6 {[%clk 0:00:17.3]} 34. b4 {[%clk 0:00:11.6]} 34...
h3 {[%clk 0:00:15.5]} 35. Ne5 {[%clk 0:00:11.6]} 35... Kf5 {[%clk 0:00:11.8]}
36. Kg1 {[%clk 0:00:08.6]} 36... f6 {[%clk 0:00:11.7]} 37. Nc6 {[%clk
0:00:05.5]} 37... Ne2+ {[%clk 0:00:11.9]} 38. Kh2 {[%clk 0:00:04.8]} 38... Nxc3
{[%clk 0:00:12.3]} 39. a3 {[%clk 0:00:04.8]} 39... Kg4 {[%clk 0:00:12.8]} 40.
Nb8 {[%clk 0:00:02.6]} 40... f5 {[%clk 0:00:12.2]} 41. Nxa6 {[%clk 0:00:02]}
41... Kf3 {[%clk 0:00:10]} 42. Nc5 {[%clk 0:00:02.5]} 42... Kxf2 {[%clk
0:00:10.2]} 43. Ne6 {[%clk 0:00:03.1]} 43... e3 {[%clk 0:00:09.7]} 44. Nf4
{[%clk 0:00:03.2]} 44... e2 {[%clk 0:00:10]} 45. Kxh3 {[%clk 0:00:03.6]} 45...
e1=Q {[%clk 0:00:02.8]} 46. Nd3+ {[%clk 0:00:03.5]} 46... Ke2 {[%clk 0:00:03.2]}
47. Nxe1 {[%clk 0:00:03.4]} 47... Kxe1 {[%clk 0:00:04.1]} 48. Kg3 {[%clk
0:00:03.8]} 48... Ke2 {[%clk 0:00:04.6]} 49. Kf4 {[%clk 0:00:04]} 49... Kd3
{[%clk 0:00:04.5]} 50. Ke5 {[%clk 0:00:03.2]} 50... Kc4 {[%clk 0:00:04.1]} 51.
a4 {[%clk 0:00:02.7]} 51... Nxa4 {[%clk 0:00:04.1]} 52. Kxf5 {[%clk 0:00:02.1]}
52... Kxd4 {[%clk 0:00:03.8]} 53. Kf4 {[%clk 0:00:02.6]} 53... Kc4 {[%clk
0:00:04.2]} 54. Ke3 {[%clk 0:00:02.7]} 54... Kxb4 {[%clk 0:00:03.8]} 55. Kd4
{[%clk 0:00:03]} 55... Nb6 {[%clk 0:00:04.7]} 56. Kd3 {[%clk 0:00:01.5]} 56...
Kc5 {[%clk 0:00:05.6]} 57. Kc3 {[%clk 0:00:01.6]} 57... d4+ {[%clk 0:00:06.5]}
58. Kd3 {[%clk 0:00:02.4]} 58... Nc4 {[%clk 0:00:07.4]} 0-1

[Event "Late-Titled-Tuesday-Blitz-April-02-2024"]
[Site "Chess.com"]
[Date "2024.04.02"]
[Round "9"]
[White "WCM-Mexicana"]
[Black "yaguigor"]
[Result "0-1"]
[WhiteElo "2434"]
[BlackElo "2608"]
[TimeControl "180+1"]
[EndTime "15:43:43 PDT"]
[Termination "yaguigor won on time"]

1. d4 {[%clk 0:02:51.2]} 1... d5 {[%clk 0:02:58.7]} 2. c4 {[%clk 0:02:50.4]}
2... e6 {[%clk 0:02:57.4]} 3. Nc3 {[%clk 0:02:50.5]} 3... c6 {[%clk 0:02:57.3]}
4. Nf3 {[%clk 0:02:49.9]} 4... Nf6 {[%clk 0:02:56.3]} 5. e3 {[%clk 0:02:49.6]}
5... Nbd7 {[%clk 0:02:55]} 6. a3 {[%clk 0:02:48.2]} 6... Bd6 {[%clk 0:02:53.7]}
7. c5 {[%clk 0:02:48]} 7... Bc7 {[%clk 0:02:53.4]} 8. b4 {[%clk 0:02:48]} 8...
e5 {[%clk 0:02:52.5]} 9. Be2 {[%clk 0:02:48.2]} 9... O-O {[%clk 0:02:51.8]} 10.
Bb2 {[%clk 0:02:47.4]} 10... Re8 {[%clk 0:02:51.1]} 11. h3 {[%clk 0:02:47.1]}
11... e4 {[%clk 0:02:49.2]} 12. Nd2 {[%clk 0:02:45.6]} 12... Nf8 {[%clk
0:02:49.8]} 13. O-O {[%clk 0:02:45.9]} 13... Ng6 {[%clk 0:02:49.8]} 14. Re1
{[%clk 0:02:46.6]} 14... Nh4 {[%clk 0:02:49.1]} 15. Nf1 {[%clk 0:02:44.5]} 15...
g6 {[%clk 0:02:39.9]} 16. a4 {[%clk 0:02:40.2]} 16... h5 {[%clk 0:02:38]} 17. b5
{[%clk 0:02:37.4]} 17... Qd7 {[%clk 0:02:34.6]} 18. f4 {[%clk 0:01:35.9]} 18...
Nxg2 {[%clk 0:02:24]} 19. Kxg2 {[%clk 0:01:33.4]} 19... Qxh3+ {[%clk 0:02:24.5]}
20. Kg1 {[%clk 0:01:31.3]} 20... h4 {[%clk 0:02:09.2]} 21. Qd2 {[%clk
0:01:27.3]} 21... g5 {[%clk 0:02:03.2]} 22. fxg5 {[%clk 0:01:08.4]} 22... Nh7
{[%clk 0:01:46.2]} 23. Bh5 {[%clk 0:01:06.7]} 23... Nxg5 {[%clk 0:01:44.9]} 24.
Qg2 {[%clk 0:01:06.3]} 24... Qf5 {[%clk 0:01:44.4]} 25. Nd2 {[%clk 0:00:34.1]}
25... h3 {[%clk 0:01:41.5]} 26. Qf2 {[%clk 0:00:32.9]} 26... Qh7 {[%clk
0:01:37.7]} 27. Qh4 {[%clk 0:00:25.1]} 27... Kh8 {[%clk 0:01:32.4]} 28. Ncxe4
{[%clk 0:00:18.6]} 28... Nxe4 {[%clk 0:01:25.2]} 29. Nxe4 {[%clk 0:00:18.6]}
29... Rxe4 {[%clk 0:01:24.7]} 30. Qf6+ {[%clk 0:00:15.7]} 30... Qg7+ {[%clk
0:01:09.4]} 31. Qxg7+ {[%clk 0:00:15.6]} 31... Kxg7 {[%clk 0:01:10.3]} 32. Bf3
{[%clk 0:00:15.6]} 32... Rh4 {[%clk 0:01:06.8]} 33. e4 {[%clk 0:00:16.1]} 33...
Be6 {[%clk 0:01:01.7]} 34. exd5 {[%clk 0:00:14.1]} 34... cxd5 {[%clk 0:00:59.5]}
35. Kh1 {[%clk 0:00:09.1]} 35... Rf4 {[%clk 0:00:55.5]} 36. Re3 {[%clk
0:00:07.1]} 36... Rh8 {[%clk 0:00:53.4]} 37. Rg1+ {[%clk 0:00:07.3]} 37... Kf6
{[%clk 0:00:52.5]} 38. Bc1 {[%clk 0:00:07.3]} 38... Rhh4 {[%clk 0:00:47.7]} 39.
b6 {[%clk 0:00:07.1]} 39... axb6 {[%clk 0:00:45.9]} 40. cxb6 {[%clk 0:00:08]}
40... Bxb6 {[%clk 0:00:45.8]} 41. Rb3 {[%clk 0:00:08.6]} 41... Bxd4 {[%clk
0:00:44.6]} 42. Bxf4 {[%clk 0:00:08.8]} 42... Rxf4 {[%clk 0:00:42.7]} 43. Rf1
{[%clk 0:00:06.9]} 43... Bg4 {[%clk 0:00:39.6]} 44. Be2 {[%clk 0:00:04]} 44...
Rxf1+ {[%clk 0:00:36]} 45. Bxf1 {[%clk 0:00:04.9]} 45... b6 {[%clk 0:00:34.9]}
46. Bxh3 {[%clk 0:00:05.3]} 46... Be2 {[%clk 0:00:32]} 47. Bg2 {[%clk
0:00:04.3]} 47... Ke5 {[%clk 0:00:30.6]} 48. Rh3 {[%clk 0:00:03.4]} 48... f5
{[%clk 0:00:28.2]} 49. Rh6 {[%clk 0:00:02.7]} 49... Bd3 {[%clk 0:00:25]} 50. Kh2
{[%clk 0:00:01.9]} 50... Be3 {[%clk 0:00:23.2]} 51. Rh8 {[%clk 0:00:02.5]} 51...
Be4 {[%clk 0:00:20.8]} 52. Re8+ {[%clk 0:00:02.3]} 52... Kd4 {[%clk 0:00:19.7]}
53. Rb8 {[%clk 0:00:03]} 53... Kc4 {[%clk 0:00:19.5]} 54. Bxe4 {[%clk
0:00:02.6]} 54... fxe4 {[%clk 0:00:19.1]} 55. Kg2 {[%clk 0:00:03.4]} 55... d4
{[%clk 0:00:15.8]} 56. Kf1 {[%clk 0:00:04.1]} 56... d3 {[%clk 0:00:15.9]} 57.
Ke1 {[%clk 0:00:04.1]} 57... Bf4 {[%clk 0:00:14.3]} 58. Re8 {[%clk 0:00:05]}
58... Kd4 {[%clk 0:00:12.6]} 59. Re6 {[%clk 0:00:05.1]} 59... e3 {[%clk
0:00:11.6]} 60. Rxb6 {[%clk 0:00:05.1]} 60... Bg3+ {[%clk 0:00:11.1]} 61. Kd1
{[%clk 0:00:03.2]} 61... e2+ {[%clk 0:00:12]} 0-1